Cogmind - Beta 11 --- EXPLORER MODE // 2022.04.17 @ 12:40:41 Player: Owlsley Result: Destroyed 0B10! Performance ------------- Evolutions (9) 4500 Regions Visited (32) 6400 Robots Destroyed (367) 1835 Value Destroyed (19423) 19423 Prototype IDs (221) 4420 Alien Tech Used (8) 1600 Bonus (27972) 27972 TOTAL SCORE: 66150 Bonus ------- High Alert Combat Kills 587 Follower Combat Kills 1482 Network Hubs Disabled 200 Met Data Miner 300 Used Data Conduit 3000 Met Zhirov 300 Met R17 at Cetus 500 Found Hidden Lab 3000 Decrypted A0 Command 3000 Used Core Reset Matrix 3000 Met R17 at Research 2000 Pursued by Intercept 1000 Met Sigix 2000 Escaped with Sigix 5000 Win 3000 Friendly Fire -397 Cogmind --------- Core Integrity 1111/1600 Matter 294/300 Energy 404/430 System Corruption 2% Temperature Cool (26) Movement Treading (156) Location Tau Ceti IV Orbit Parts ------- > --- POWER (2) -------- Heavy Antimatter Reactor Light Quantum Reactor > --- PROPULSION (7) --- Advanced Medium Treads Advanced Heavy Siege Treads Advanced Heavy Siege Treads Advanced Heavy Siege Treads > --- UTILITY (14) ----- Advanced Cooling System Advanced Coolant Injector Advanced Coolant Injector Huge Storage Unit Experimental Targeting Computer Improved Particle Charger Experimental Core Shielding Layered Heavy Armor Plating Centrium Medium Armor Plating Medium Regenerative Plating Improved Focal Shield Deep Network Scanner > --- WEAPON (3) ------- Cooled Plasma Cannon Cooled Plasma Cannon Cooled Phase Cannon > --- INVENTORY (25) --- Light Quantum Reactor Advanced Heavy Siege Treads Advanced Heavy Siege Treads Advanced Heavy Siege Treads Coolant Injector Advanced Terrain Scan Processor Medium Regenerative Plating Improved Thermal Shield High-powered Transdimensional Reconstructor Cooled Plasma Cannon Warp Cannon Warp Cannon Long-range Missile Launcher Sigix Containment Pod Peak State ------------ > --- POWER ------------ Heavy Antimatter Reactor Quantum Reactor > --- PROPULSION ------- Advanced Medium Treads Advanced Heavy Siege Treads Advanced Heavy Siege Treads Advanced Heavy Siege Treads > --- UTILITY ---------- Advanced Cooling System Advanced Coolant Injector Huge Storage Unit Experimental Targeting Computer Armor Integrity Analyzer Experimental Core Shielding Centrium Medium Armor Plating Advanced Powered Armor Medium Regenerative Plating Medium Regenerative Plating Phase Armor Improved Focal Shield Deep Network Scanner > --- WEAPON ----------- Cooled Plasma Cannon Cooled Plasma Cannon Cooled Phase Cannon > --- INVENTORY -------- Light Quantum Reactor Light Quantum Reactor Advanced Heavy Siege Treads Advanced Heavy Siege Treads Advanced Heavy Siege Treads Coolant Injector Advanced Coolant Injector Advanced Terrain Scan Processor Improved Particle Charger Particle Accelerator Improved Heavy Armor Plating Improved Thermal Shield High-powered Transdimensional Reconstructor Cooled Plasma Cannon Warp Cannon Warp Cannon Long-range Missile Launcher Sigix Containment Pod [Rating: 224] Favorites ----------- Power Quantum Reactor Engine Deuterium Engine Reactor Quantum Reactor Propulsion Advanced Treads Treads Advanced Treads Leg Aluminum Leg Utility Targeting Computer Device Advanced Heat Sink Storage High-capacity Storage Unit Processor Targeting Computer Hackware Deep Network Scanner Protection Centrium Medium Armor Plating Artifact Phase Armor Weapon Cooled Plasma Cannon Energy Gun Gatling Laser Energy Cannon Cooled Plasma Cannon Ballistic Gun Advanced KE Penetrator Launcher Long-range Missile Launcher Special Weapon Guided Remote Datajack Build | -11 -10 -10 -9 -9 -9 -8 -8 -7 -7 -7 -7 -6 -6 -6 -6 -6 -6 -5 -5 -5 -4 -4 -4 -4 -3 -3 -3 -3 -2 -2 -1 -1 ------- Run | Scr Mat Min Mat Min Exi Min Mat Fac Low Low Dat Pro Fac Ext Cet Arc Hub Fac Upp Upp Fac Upp Upp Zhi Pro Res Arm Lab Res Qua Acc Com Slots Evolved 18 | . 1 . 2 . . . 2 2 . . . . 2 . . . . 2 . . 2 . . . . 2 . . 2 . 1 . Power 1 | . . . . . . . . . . . . . . . . . . . . . . . . . . . . . 1 . . . Propulsion 4 | . . . 1 . . . 1 . . . . . . . . . . . . . . . . . . 2 . . . . . . Utility 12 | . 1 . 1 . . . 1 2 . . . . 2 . . . . 1 . . 2 . . . . . . . 1 . 1 . Weapon 1 | . . . . . . . . . . . . . . . . . . 1 . . . . . . . . . . . . . . Parts Attached 231 | 3 3 . 17 . . . 13 18 5 1 14 11 13 23 15 2 4 8 2 . 7 4 . 8 . 3 1 14 7 18 4 13 Power 19 | . . . 3 . . . 1 1 . 1 2 . 1 4 1 . . . . . . . . 1 . . . . 1 2 . 1 Engine 10 | . . . 3 . . . 1 1 . 1 1 . 1 2 . . . . . . . . . . . . . . . . . . Core . | . . . . . . . . . . . . . . . . . . . . . . . . . . . . . . . . . Reactor 9 | . . . . . . . . . . . 1 . . 2 1 . . . . . . . . 1 . . . . 1 2 . 1 Propulsion 47 | 2 . . 7 . . . 5 4 . . 4 4 3 5 5 . . . . . . . . . . 1 . 1 2 1 . 3 Treads 47 | 2 . . 7 . . . 5 4 . . 4 4 3 5 5 . . . . . . . . . . 1 . 1 2 1 . 3 Leg . | . . . . . . . . . . . . . . . . . . . . . . . . . . . . . . . . . Wheel . | . . . . . . . . . . . . . . . . . . . . . . . . . . . . . . . . . Hover . | . . . . . . . . . . . . . . . . . . . . . . . . . . . . . . . . . Flight . | . . . . . . . . . . . . . . . . . . . . . . . . . . . . . . . . . Utility 122 | 1 1 . 7 . . . 5 11 5 . 3 6 7 9 4 1 1 7 2 . 5 4 . 7 . 1 1 8 2 13 2 9 Device 61 | . 1 . 1 . . . 4 4 3 . 2 4 1 3 1 . . 4 1 . 3 4 . 3 . . 1 5 2 10 1 3 Storage 3 | . . . 1 . . . . 1 . . . . . . 1 . . . . . . . . . . . . . . . . . Processor 10 | 1 . . . . . . . 3 . . . . 1 1 . . . 2 1 . . . . . . . . . . 1 . . Hackware 3 | . . . . . . . . . . . . . 1 . . . . . . . . . . 1 . . . 1 . . . . Protection 44 | . . . 5 . . . 1 3 2 . 1 2 4 5 2 1 1 1 . . 2 . . 3 . 1 . 2 . 1 1 6 Artifact 1 | . . . . . . . . . . . . . . . . . . . . . . . . . . . . . . 1 . . Weapon 43 | . 2 . . . . . 2 2 . . 5 1 2 5 5 1 3 1 . . 2 . . . . 1 . 5 2 2 2 . Energy Gun 8 | . . . . . . . . . . . . . . 4 3 1 . . . . . . . . . . . . . . . . Energy Cannon 29 | . 2 . . . . . 2 2 . . 4 1 2 1 . . 2 1 . . 2 . . . . 1 . 4 2 2 1 . Ballistic Gun 3 | . . . . . . . . . . . . . . . 2 . 1 . . . . . . . . . . . . . . . Ballistic Cannon . | . . . . . . . . . . . . . . . . . . . . . . . . . . . . . . . . . Launcher 2 | . . . . . . . . . . . 1 . . . . . . . . . . . . . . . . . . . 1 . Special Weapon 1 | . . . . . . . . . . . . . . . . . . . . . . . . . . . . 1 . . . . Impact Weapon . | . . . . . . . . . . . . . . . . . . . . . . . . . . . . . . . . . Slashing Weapon . | . . . . . . . . . . . . . . . . . . . . . . . . . . . . . . . . . Piercing Weapon . | . . . . . . . . . . . . . . . . . . . . . . . . . . . . . . . . . Special Melee Weapon . | . . . . . . . . . . . . . . . . . . . . . . . . . . . . . . . . . Unidentified Prototypes 11 | . . . 1 . . . . . . . . . . . . . . . . . . . . 1 . . 1 8 . . . . Parts Lost 44 | . . . 1 . . . 2 . . . 12 4 1 11 3 . . . . . 1 . . . . 2 . . . 1 . 6 Power 5 | . . . . . . . . . . . 1 . 1 2 . . . . . . . . . . . . . . . . . 1 Propulsion 15 | . . . 1 . . . . . . . 4 3 . 4 3 . . . . . . . . . . . . . . . . . Utility 16 | . . . . . . . 1 . . . 3 1 . 3 . . . . . . 1 . . . . 1 . . . 1 . 5 Weapon 8 | . . . . . . . 1 . . . 4 . . 2 . . . . . . . . . . . 1 . . . . . . Highest Loss Streak 12 | . . . 1 . . . 1 . . . 12 3 1 11 2 . . . . . 1 . . . . 1 . . . 1 . 3 To Critical Strikes 5 | . . . . . . . . . . . . . . . 2 . . . . . . . . . . 1 . . . . . 2 Average Slot Usage (%) 92 | . 100 100 98 100 100 100 97 98 100 100 95 98 97 97 92 87 87 88 88 88 85 85 85 84 85 81 . 81 83 83 82 83 Engine 4 | . 12 12 10 10 10 10 8 6 7 7 4 . 2 5 4 . . . . . . . . . . . . . . . . . Reactor 2 | . . . . . . . . . . . 2 7 3 . 1 6 6 5 5 5 5 5 5 5 5 4 . 4 8 8 7 7 Treads 21 | . 25 25 29 30 30 30 31 26 28 28 27 27 25 24 17 12 12 11 11 11 10 10 10 10 10 13 . 14 15 16 15 15 Device 13 | . 12 12 10 10 10 10 15 15 13 14 15 17 12 13 7 6 6 13 16 16 19 20 20 18 15 13 . 13 16 15 15 12 Storage 6 | . 12 12 10 10 10 10 8 7 7 7 7 7 6 6 6 6 6 5 5 5 5 5 5 5 5 4 . 4 4 4 3 3 Processor 15 | . 12 12 10 10 10 10 8 19 21 21 21 21 18 16 18 18 18 16 22 22 20 20 20 20 15 13 . 13 12 14 15 13 Hackware 1 | . . . . . . . . . . . . . 3 6 1 . . . . . . . . 1 5 4 . 4 4 4 3 3 Protection 10 | . . . 9 10 10 10 7 6 7 7 2 3 12 10 22 25 25 19 11 11 11 10 10 10 15 13 . 12 12 6 5 11 Energy Cannon 13 | . 5 25 20 20 20 20 15 14 14 14 12 14 12 7 . . 6 16 16 16 14 15 15 15 15 13 . 12 11 12 10 11 Ballistic Gun 1 | . 19 . . . . . . . . . . . . . 10 . 2 . . . . . . . . . . . . . . . Naked Turns . | . . . . . . . . . . . . . . . . . . . . . . . . . . . . . . . . . Heaviest Build 220 | 18 24 24 63 63 63 63 70 73 73 73 78 82 83 82 141 139 146 156 152 141 163 160 160 160 157 157 154 169 193 207 213 220 Greatest Support 270 | 40 40 40 66 66 66 66 88 94 88 88 88 90 85 85 160 160 160 160 160 160 160 160 160 160 160 230 230 258 258 260 260 270 Greatest Overweight (x) 1 | . . . . . . . . 1 . . 1 1 . 1 . . . . . . 1 . . . . . . . . . . . Average Overweight (x) . | . . . . . . . . . . . . . . . . . . . . . . . . . . . . . . . . . Largest Inventory Capacity 25 | 10 10 10 20 20 20 20 20 20 20 20 20 20 20 20 25 25 25 25 25 25 25 25 25 25 25 25 25 25 25 25 25 25 Average Capacity 21 | 10 10 10 19 20 20 20 20 20 20 20 20 20 20 20 21 25 25 25 25 25 25 25 25 25 25 25 25 25 25 25 25 25 Most Carried 25 | 8 10 10 20 20 20 20 20 20 20 20 20 20 20 20 25 25 25 25 25 25 25 25 25 25 24 25 25 25 25 25 24 25 Average Carried 20 | 7 9 10 18 20 20 20 19 19 20 20 15 18 19 19 20 24 24 24 24 25 23 24 25 24 24 24 24 24 23 24 23 23 Final Capacity 25 | 10 10 10 20 20 20 20 20 20 20 20 20 20 20 20 25 25 25 25 25 25 25 25 25 25 25 25 25 25 25 25 25 25 Final Carried 25 | 8 10 10 20 20 20 20 20 20 20 20 15 20 20 17 25 25 25 25 25 25 23 25 25 24 24 25 24 25 25 24 23 18 Class Distribution -------------------- 51% | Hacker-Mutant 14% | Scavenger-Mutant 12% | Hacker-Tank 6% | Scavenger-Gunner 5% | Scavenger-Tank 4% | Hacker-Gunner 3% | Scavenger-Skirmisher Dominant Class ---------------- Hacker-Mutant | -10/Materials Hacker-Mutant | -10/Mines Hacker-Mutant | -9/Materials Hacker-Mutant | -9/Mines Hacker-Mutant | -9/Exiles Hacker-Mutant | -8/Mines Hacker-Mutant | -8/Materials Hacker-Mutant | -7/Factory Hacker-Mutant | -7/Lower Caves Hacker-Mutant | -7/Lower Caves Hacker-Mutant | -7/Data Miner Scavenger-Mutant | -6/Proximity Caves Hacker-Mutant | -6/Factory Hacker-Mutant | -6/Extension Scavenger-Mutant | -6/Cetus Scavenger-Mutant | -6/Archives Scavenger-Mutant | -6/Hub_04(d) Scavenger-Tank | -5/Factory Scavenger-Skirmisher | -5/Upper Caves Scavenger-Skirmisher | -5/Upper Caves Scavenger-Tank | -4/Factory Scavenger-Gunner | -4/Upper Caves Scavenger-Gunner | -4/Upper Caves Scavenger-Gunner | -4/Zhirov Hacker-Tank | -3/Proximity Caves Hacker-Tank | -3/Research Hacker-Tank | -3/Armory Hacker-Tank | -3/Lab Hacker-Tank | -2/Research Hacker-Gunner | -2/Quarantine Hacker-Tank | -1/Access Hacker-Tank | -1/Command Resources | -11 -10 -10 -9 -9 -9 -8 -8 -7 -7 -7 -7 -6 -6 -6 -6 -6 -6 -5 -5 -5 -4 -4 -4 -4 -3 -3 -3 -3 -2 -2 -1 -1 ----------- Run | Scr Mat Min Mat Min Exi Min Mat Fac Low Low Dat Pro Fac Ext Cet Arc Hub Fac Upp Upp Fac Upp Upp Zhi Pro Res Arm Lab Res Qua Acc Com Matter Collected 2835 | 248 113 26 170 . . . 172 153 55 32 107 98 135 155 383 40 84 80 20 . 70 40 . . 90 30 . . 175 86 217 56 Remotely . | . . . . . . . . . . . . . . . . . . . . . . . . . . . . . . . . . Salvage Created 19772 | 91 253 25 1696 129 . 150 1068 1192 365 144 244 574 619 581 609 288 883 723 407 110 1457 180 74 . 1392 460 . 81 987 1498 782 2710 Parts 811 | 2 22 . 103 12 . 12 59 49 9 7 3 28 24 27 34 8 39 30 10 4 42 4 . . 46 11 . 4 43 67 24 88 Haulers Intercepted 14 | . 2 . 4 . . . 3 3 . . . . . . . . 1 . . . 1 . . . . . . . . . . . Recyclers Shooed 5 | . . . 1 . . . 1 . . . . . . . . . . . . . . . . . . . . . . 1 2 . Parts Field Recycled . | . . . . . . . . . . . . . . . . . . . . . . . . . . . . . . . . . Retrieved Matter . | . . . . . . . . . . . . . . . . . . . . . . . . . . . . . . . . . Parts Self-Destructed . | . . . . . . . . . . . . . . . . . . . . . . . . . . . . . . . . . Prevented . | . . . . . . . . . . . . . . . . . . . . . . . . . . . . . . . . . Kills | -11 -10 -10 -9 -9 -9 -8 -8 -7 -7 -7 -7 -6 -6 -6 -6 -6 -6 -5 -5 -5 -4 -4 -4 -4 -3 -3 -3 -3 -2 -2 -1 -1 ------- Run | Scr Mat Min Mat Min Exi Min Mat Fac Low Low Dat Pro Fac Ext Cet Arc Hub Fac Upp Upp Fac Upp Upp Zhi Pro Res Arm Lab Res Qua Acc Com Combat Hostiles Destroyed 300 | . 6 3 28 4 . 5 18 16 8 2 4 12 11 8 11 4 12 12 7 4 17 3 1 . 22 5 . 1 12 19 13 32 Guns 30 | . 6 . . . . . . . . . . . . 4 11 4 5 . . . . . . . . . . . . . . . Cannons 223 | . . 3 26 4 . 5 12 14 7 1 3 12 10 4 . . 4 10 5 3 15 3 . . 22 4 . . 11 18 3 24 AOE 15 | . . . 2 . . . 5 . . . . . 1 . . . . . 1 . . . . . . . . . . . 6 . Classes Destroyed 24 | 2 3 1 6 1 . 1 2 1 . 2 . . . . . . . . . . . . . . . . . . . 1 . 4 Worker 7 | . . . 1 . . 1 1 . . . . . . . . . . . . . . . . . . 1 . . 1 . 2 . Builder 5 | . . . 4 . . . . . . . . . . . . . 1 . . . . . . . . . . . . . . . Tunneler 3 | 1 . . . . . . 1 . . . . . . . . . . . . . 1 . . . . . . . . . . . Hauler 14 | . 2 . 4 . . . 3 3 . . . . . . . . 1 . . . 1 . . . . . . . . . . . Recycler 10 | 1 . . 2 . . . 2 2 . . . . . . . . . 1 . . 1 . . . . . . . . . . 1 Carrier 1 | . . . . . . . 1 . . . . . . . . . . . . . . . . . . . . . . . . . Mechanic 1 | . . . . . . . . . . . . . . . . . . . . . . . . . . . . . . . . 1 Operator 7 | . . . 2 . . . . 2 . . . . . 1 . . . 1 . . . . . . . . . . . . . 1 Watcher 21 | . 2 . 5 . . . 4 . . . . . 1 . 2 . 1 1 . . . . . . . 1 . . 1 1 2 . Swarmer 59 | . 6 . 5 2 . 3 6 3 2 . . 3 . . 6 . . 7 . 4 . . . . 8 . . . . . . 4 Grunt 86 | . . . 12 1 . . 9 4 2 . . 4 8 2 . . 5 . 3 . 7 1 . . 6 4 . . 5 4 1 8 Brawler 9 | . . . 1 . . . . 2 . . . 1 1 . . . . . . . 1 . . . 2 . . . . . . 1 Duelist 6 | . . . . 1 . . . . . . . 1 . . . . . . . . . . . . 2 . . . 1 . . 1 Protector 2 | . . . . . . . 1 . . . . 1 . . . . . . . . . . . . . . . . . . . . Sentry 45 | . . . 10 . . . 2 4 1 . . 1 . 3 . 4 4 3 1 . 3 . 1 . 1 1 . . 1 . 2 3 Specialist 3 | . . . . . . . . . . . . . . . . . . . . . . . . . . . . . . 3 . . Hunter 25 | . . . . . . 2 . . 2 . . . 1 1 . . . . 2 . 4 . . . 2 . . . . 2 9 . Programmer 30 | . . . . . . . . 3 1 . . . 1 . . . 2 . 1 . 2 2 . . 1 . . . 5 6 1 5 Behemoth 7 | . . . . . . . . . . 1 . 1 . 2 . . 1 . . . . . . . . . . . . . . 2 Cetus Guard 5 | . . . . . . . . . . . . . . . 5 . . . . . . . . . . . . . . . . . Enhanced Grunt 4 | . . . . . . . . . . . 4 . . . . . . . . . . . . . . . . . . . . . Tracker 3 | . . . . . . . . . . . . . . . . . . 1 . . . . . . . . . . . 2 . . Combat Programmer 3 | . . . . . . . . . . . . . . . . . . 1 . . . . . . . . . . . 2 . . Striker 2 | . . . . . . . . . . . . . . . . . . . . . . . . . . . . . . . . 2 Executioner 4 | . . . . . . . . . . . . . . . . . . . . . . . . . . . . . . . . 4 Alpha 7 2 | . . . . . . . . . . . . . . . . . . . . . . . . . . . . . . . . 2 Assembled 4 | . . 3 . . . . . . . . . . . . . . . . . . . . . . . . . . . . . 1 Butcher 1 | . . . . . . . . . . . . . . . 1 . . . . . . . . . . . . . . . . . Mutant 1 | . . . . . . . . . . 1 . . . . . . . . . . . . . . . . . . . . . . Best Kill Streak 12 | 2 3 3 7 2 . 3 5 3 5 1 3 7 5 2 6 1 6 5 4 4 6 1 1 . 8 2 . 1 9 4 10 12 Combat Bots Only 11 | . 3 3 6 2 . 3 4 3 5 1 3 7 5 2 6 1 5 5 4 4 5 1 1 . 8 2 . 1 8 4 7 11 Max Kills in Single Turn 5 | 1 1 1 3 1 . 1 5 2 1 1 1 1 1 2 2 1 1 2 1 1 1 1 1 . 2 1 . 1 2 1 2 2 Gunslinging 1 | . . . . . . . . . . . . . . . 1 . . . . . . . . . . . . . . . . . Exploded 4 | . . . 1 . . . 4 . . . . . 1 . . . . . 1 . . . . . . . . . . . 2 . Melee . | . . . . . . . . . . . . . . . . . . . . . . . . . . . . . . . . . Uniques/NPCs Destroyed 1 | . . . . . . . . . . . . . . . . . . . . . . . . . . . . 1 . . . . A5 (-3/Lab) Combat | -11 -10 -10 -9 -9 -9 -8 -8 -7 -7 -7 -7 -6 -6 -6 -6 -6 -6 -5 -5 -5 -4 -4 -4 -4 -3 -3 -3 -3 -2 -2 -1 -1 -------- Run | Scr Mat Min Mat Min Exi Min Mat Fac Low Low Dat Pro Fac Ext Cet Arc Hub Fac Upp Upp Fac Upp Upp Zhi Pro Res Arm Lab Res Qua Acc Com Damage Taken 16628 | . 67 303 297 76 . 99 219 612 393 135 1540 1187 376 1410 1070 300 691 338 306 60 497 61 29 . 999 350 . 34 446 1855 619 2259 Core 1753 | . 8 69 38 19 . . 12 81 22 . 57 181 23 163 33 15 27 36 . 11 . 12 . . 22 11 . . 52 372 114 375 Absorbed by Shields 799 | . . . . . . . 8 . . . . . . 17 . . . 24 . . 156 . . . . . . . 162 . 306 126 Reduced by Siege Mode 126 | . . . . . . . . . . . . . . . . . . . . . . . . . . . . . . . . 126 Redirected to Core 649 | . . . . . . . . . . . . . . . . . . . . . . . . . . . . . . 289 100 260 Redirected to Shielding 67 | . . . . . . . . . . . . . . . . . . . . . . . . . 31 9 . . . . . 27 Regen/Repaired (Parts) 2338 | . . . 57 . . . 285 78 . . . . 81 . . . . 64 . . . . . . . . . 51 1371 205 41 105 Core Remaining (%) 80 | 100 . 69 . . . 85 97 . . . . 51 . . . . 69 . . 95 . . . . 97 . . 93 . 65 . 69 Volleys Fired 825 | 6 22 6 49 9 . 9 43 53 20 11 34 33 31 50 38 14 41 25 17 4 38 4 3 . 40 22 . 5 38 51 29 80 Largest 3 | 2 2 2 2 2 . 2 2 2 2 2 2 2 2 2 2 2 2 3 3 3 3 3 3 . 3 3 . 3 3 3 3 3 Hottest 330 | 40 40 136 136 136 . 136 136 128 125 125 138 165 165 165 160 160 210 105 105 105 115 115 115 . 115 115 . 110 120 110 110 330 Shots Fired 1867 | 12 44 12 98 18 . 18 85 104 40 19 42 65 54 93 76 19 77 65 51 13 113 12 9 . 105 60 . 9 103 152 67 232 Gun 220 | 12 44 . . . . . . . . . . . . 39 76 19 30 . . . . . . . . . . . . . . . Cannon 1633 | . . 12 98 18 . 18 85 104 40 19 38 65 54 54 . . 47 65 51 13 113 12 9 . 105 60 . 9 103 152 57 232 Launcher 14 | . . . . . . . . . . . 4 . . . . . . . . . . . . . . . . . . . 10 . Special . | . . . . . . . . . . . . . . . . . . . . . . . . . . . . . . . . . Kinetic 129 | 12 44 . . . . . . . . . . . . . 62 . 11 . . . . . . . . . . . . . . . Thermal 1712 | . . 12 98 18 . 18 85 104 40 19 37 65 47 89 14 19 66 65 51 13 113 12 9 . 105 60 . 9 103 152 57 232 Explosive 14 | . . . . . . . . . . . 4 . . . . . . . . . . . . . . . . . . . 10 . Electromagnetic 12 | . . . . . . . . . . . 1 . 7 4 . . . . . . . . . . . . . . . . . . Robot Hit Streak 81 | 11 37 23 26 15 . 16 22 29 10 24 34 32 35 81 19 49 21 6 13 20 39 16 25 . 51 31 . 3 40 48 29 38 Robot Miss Streak 3 | . 1 . 1 1 . 1 2 1 1 1 1 3 1 2 1 . 2 1 1 1 3 . . . 1 1 . 1 1 3 1 1 Penetration Max 1 | . . . . . . . . . . . . . . . 1 . 1 . . . . . . . . . . . . . . . Secondary Targets 4 | . 1 . . . . . . . . . . . . . 3 . . . . . . . . . . . . . . . . . Max Gunslinging Chain 1 | . 1 . . . . . . . . . . . . . 1 . . . . . . . . . . . . . . . . . Shots Hit Robots 1392 | 11 38 11 75 14 . 14 73 86 28 14 39 55 41 84 59 19 52 29 25 7 79 8 9 . 72 39 . 3 58 109 58 183 Core Hits 627 | 4 13 5 51 6 . 8 36 32 10 5 28 19 22 29 41 22 22 20 9 3 33 2 1 . 34 14 . 2 21 36 44 55 Critical Kills 21 | . . . 1 . . . 1 1 1 . . . . . 1 . 4 1 . 1 2 . . . . . . 1 . 1 1 5 Critical Parts Destroyed 4 | . . . . . . . . . . . . . . . 3 . 1 . . . . . . . . . . . . . . . Critical Strikes 27 | . . . 1 . . . 1 1 1 . . . . 2 4 . 5 1 . 1 2 . . . . . . 1 . 1 1 5 Burn 1 | . . . . . . . . . . . . . . 1 . . . . . . . . . . . . . . . . . . Meltdown 19 | . . . 1 . . . 1 1 1 . . . . . . . 3 1 . 1 2 . . . . . . 1 . 1 1 5 Destroy 6 | . . . . . . . . . . . . . . . 4 . 2 . . . . . . . . . . . . . . . Corrupt 1 | . . . . . . . . . . . . . . 1 . . . . . . . . . . . . . . . . . . Melee Attacks . | . . . . . . . . . . . . . . . . . . . . . . . . . . . . . . . . . Impact . | . . . . . . . . . . . . . . . . . . . . . . . . . . . . . . . . . Slashing . | . . . . . . . . . . . . . . . . . . . . . . . . . . . . . . . . . Piercing . | . . . . . . . . . . . . . . . . . . . . . . . . . . . . . . . . . Sneak Attacks . | . . . . . . . . . . . . . . . . . . . . . . . . . . . . . . . . . Combat Hostiles . | . . . . . . . . . . . . . . . . . . . . . . . . . . . . . . . . . Follow-up Attacks . | . . . . . . . . . . . . . . . . . . . . . . . . . . . . . . . . . Damage Inflicted 52323 | 105 413 224 2383 306 . 292 2556 2101 771 366 1253 2402 1680 2531 1779 612 2020 1128 877 242 3145 409 400 . 3551 1731 . 95 2747 4958 3991 7255 Guns 4727 | 105 413 . . . . . . . . . . . . 1016 1779 603 811 . . . . . . . . . . . . . . . Cannons 42321 | . . 224 1642 306 . 292 1553 2101 771 366 594 2376 1451 1515 . . 1055 1128 877 242 3145 409 400 . 3551 1731 . 95 2747 4844 1651 7255 Explosions 5229 | . . . 728 . . . 1003 . . . 635 26 229 . . . 154 . . . . . . . . . . . . 114 2340 . Melee . | . . . . . . . . . . . . . . . . . . . . . . . . . . . . . . . . . Ramming 46 | . . . 13 . . . . . . . 24 . . . . 9 . . . . . . . . . . . . . . . . Kinetic 2180 | 105 413 . . . . . . . . . . . . . 1323 . 339 . . . . . . . . . . . . . . . Thermal 45761 | . . 224 1881 306 . 292 2327 2101 771 366 578 2402 1406 2446 456 603 1527 1128 877 242 3145 409 400 . 3551 1731 . 95 2747 4844 1651 7255 Explosive 3572 | . . . 254 . . . 229 . . . 635 . . . . . . . . . . . . . . . . . . 114 2340 . Electromagnetic 764 | . . . 235 . . . . . . . 16 . 274 85 . . 154 . . . . . . . . . . . . . . . Impact . | . . . . . . . . . . . . . . . . . . . . . . . . . . . . . . . . . Slashing . | . . . . . . . . . . . . . . . . . . . . . . . . . . . . . . . . . Piercing . | . . . . . . . . . . . . . . . . . . . . . . . . . . . . . . . . . Highest Corruption 7 | . 4 4 . . . . . . . . . . . . . . 1 1 1 1 1 . . . . . . . 2 7 . 2 Average Corruption 2 | . 2 4 . . . . . . . . . . . . . . 1 1 1 1 1 . . . . . . . 1 5 . 1 Corruption Purged 5 | . . . . . . . . . . . . . . . . . . . . . 1 . . . . . . . 2 2 . . Corruption Blocked . | . . . . . . . . . . . . . . . . . . . . . . . . . . . . . . . . . Effects 33 | . 10 1 . . . . . . . . . . . . . . . . 3 3 . . . . . . . . 2 11 . 3 Message Errors 5 | . 4 . . . . . . . . . . . . . . . . . . 1 . . . . . . . . . . . . Matter Fused 10 | . 1 1 . . . . . . . . . . . . . . . . . . . . . . . . . . 1 4 . 3 Heat Flow Errors 6 | . 3 . . . . . . . . . . . . . . . . . . . . . . . . . . . . 3 . . Energy Discharges 4 | . 2 . . . . . . . . . . . . . . . . . . . . . . . . . . . . 2 . . Data Loss (minor) 3 | . . . . . . . . . . . . . . . . . . . 2 . . . . . . . . . . 1 . . Data Loss (major) 1 | . . . . . . . . . . . . . . . . . . . 1 . . . . . . . . . . . . . Misfires 3 | . . . . . . . . . . . . . . . . . . . . 1 . . . . . . . . 1 1 . . Alerts 1 | . . . . . . . . . . . . . . . . . . . . 1 . . . . . . . . . . . . Overload Shots 21 | . . . . . . . . . . . . . . . . . 2 . . . . . . . . . . . 1 . . 18 Effects 1 | . . . . . . . . . . . . . . . . . . . . . . . . . . . . . . . . 1 Short Circuit 1 | . . . . . . . . . . . . . . . . . . . . . . . . . . . . . . . . 1 Overflow Damage 1464 | . . . 66 8 . . 188 52 12 . 28 53 49 12 . . 79 26 11 . 65 42 . . 37 50 . . 88 278 139 181 Projectiles 1049 | . . . 24 8 . . 23 52 12 . 6 53 39 12 . . 79 26 11 . 65 42 . . 37 50 . . 88 234 7 181 Explosions 415 | . . . 42 . . . 165 . . . 22 . 10 . . . . . . . . . . . . . . . . 44 132 . Melee . | . . . . . . . . . . . . . . . . . . . . . . . . . . . . . . . . . Knockbacks . | . . . . . . . . . . . . . . . . . . . . . . . . . . . . . . . . . Impact . | . . . . . . . . . . . . . . . . . . . . . . . . . . . . . . . . . Kinetic . | . . . . . . . . . . . . . . . . . . . . . . . . . . . . . . . . . Secondary . | . . . . . . . . . . . . . . . . . . . . . . . . . . . . . . . . . Self-Inflicted Damage 155 | . . . 47 . . . . . . . . . 43 . . . 65 . . . . . . . . . . . . . . . Shots 3 | . . . 1 . . . . . . . . . 1 . . . 1 . . . . . . . . . . . . . . . Rammed 3 | . . . 1 . . . . . . . 1 . . . . 1 . . . . . . . . . . . . . . . . Targets Rammed 3 | . . . 1 . . . . . . . 1 . . . . 1 . . . . . . . . . . . . . . . . Kicked . | . . . . . . . . . . . . . . . . . . . . . . . . . . . . . . . . . Crushed . | . . . . . . . . . . . . . . . . . . . . . . . . . . . . . . . . . Highest Temperature 633 | . 256 225 323 204 . 144 390 34 31 . 18 633 11 324 111 186 199 . . . . . 6 . 34 9 . . 48 148 . 185 Average Temperature 88 | . 100 92 85 79 . 50 116 15 14 . 13 172 4 149 41 91 84 . . . . . 4 . 12 9 . . 15 78 . 97 Received Heat Transfer 3291 | . . 20 138 12 . . 157 312 186 12 . 405 162 306 153 90 258 54 99 . 127 . 18 . 274 162 . . 93 99 62 92 Effects 7 | . . . . . . . 2 . . . . 5 . . . . . . . . . . . . . . . . . . . . Shutdowns 2 | . . . . . . . 1 . . . . 1 . . . . . . . . . . . . . . . . . . . . Matter Decay 1 | . . . . . . . 1 . . . . . . . . . . . . . . . . . . . . . . . . . Short Circuit 1 | . . . . . . . . . . . . 1 . . . . . . . . . . . . . . . . . . . . Damage (major) 2 | . . . . . . . . . . . . 2 . . . . . . . . . . . . . . . . . . . . Damage (core) 1 | . . . . . . . . . . . . 1 . . . . . . . . . . . . . . . . . . . . Siege Activations 1 | . . . . . . . . . . . . . . . . . . . . . . . . . . . . . . . . 1 Total Turns 40 | . . . . . . . . . . . . . . . . . . . . . . . . . . . . . . . . 40 Longest Duration 40 | . . . . . . . . . . . . . . . . . . . . . . . . . . . . . . . . 40 Robots Corrupted . | . . . . . . . . . . . . . . . . . . . . . . . . . . . . . . . . . Combat Hostiles . | . . . . . . . . . . . . . . . . . . . . . . . . . . . . . . . . . Parts Fried 6 | . . . 1 . . . 3 . . 1 . . 1 . . . . . . . . . . . . . . . . . . . Impact Corruptions . | . . . . . . . . . . . . . . . . . . . . . . . . . . . . . . . . . Robots Melted 33 | . . . 1 . . . 1 2 1 . 1 . . . . . 3 2 1 1 2 . 1 . . 1 . 1 1 1 4 9 Combat Hostiles 31 | . . . . . . . 1 2 1 . 1 . . . . . 3 2 1 1 2 . 1 . . 1 . 1 1 1 4 8 Parts Melted 191 | . . . 10 1 . 2 5 11 4 1 . 2 . 5 1 10 8 9 4 2 19 . 2 . 7 4 . 5 12 10 18 39 Heat Transferred 54436 | . . 407 3075 518 . 518 3188 3219 1073 518 1258 1178 768 3272 950 1173 1972 1600 1250 350 3641 348 372 . 3124 1779 . 68 2716 5097 2255 8749 Parts Sabotaged . | . . . . . . . . . . . . . . . . . . . . . . . . . . . . . . . . . Parts Stolen . | . . . . . . . . . . . . . . . . . . . . . . . . . . . . . . . . . Parts Stripped . | . . . . . . . . . . . . . . . . . . . . . . . . . . . . . . . . . Power Chain Reactions 3 | . . . . . . . . . . . . 1 2 . . . . . . . . . . . . . . . . . . . Missiles Intercepted . | . . . . . . . . . . . . . . . . . . . . . . . . . . . . . . . . . Alert | -11 -10 -10 -9 -9 -9 -8 -8 -7 -7 -7 -7 -6 -6 -6 -6 -6 -6 -5 -5 -5 -4 -4 -4 -4 -3 -3 -3 -3 -2 -2 -1 -1 ------- Run | Scr Mat Min Mat Min Exi Min Mat Fac Low Low Dat Pro Fac Ext Cet Arc Hub Fac Upp Upp Fac Upp Upp Zhi Pro Res Arm Lab Res Qua Acc Com Peak Influence 667 | 10 131 . 307 131 . 119 430 189 . . . . 205 245 195 180 289 397 . . 435 . . . . 256 74 . 314 472 606 667 Initial 296 | . 4 . . 1 . . . . . . . . . 73 2 40 43 103 . . 43 . . . . 111 74 . . 7 84 296 Average 108 | 6 32 . 110 32 . 26 126 55 . . . . 42 68 120 134 101 104 . . 134 . . . . 183 74 . 71 169 330 374 Maximum Alert Level 2 | . . . 1 . . . 2 . . . . . 1 1 . . 1 1 . . 2 . . . . 1 . . 1 2 2 2 Low Security (%) 82 | 100 100 100 79 100 . 100 64 100 . . . . 95 90 100 100 85 89 . . 82 . . . . 68 100 . 79 71 36 11 Level 1 12 | . . . 20 . . . 32 . . . . . 4 9 . . 14 10 . . 12 . . . . 31 . . 20 15 21 39 Level 2 4 | . . . . . . . 2 . . . . . . . . . . . . . 5 . . . . . . . . 12 42 49 Level 3 . | . . . . . . . . . . . . . . . . . . . . . . . . . . . . . . . . . Level 4 . | . . . . . . . . . . . . . . . . . . . . . . . . . . . . . . . . . Level 5 . | . . . . . . . . . . . . . . . . . . . . . . . . . . . . . . . . . High Security . | . . . . . . . . . . . . . . . . . . . . . . . . . . . . . . . . . Max Security . | . . . . . . . . . . . . . . . . . . . . . . . . . . . . . . . . . Squads Dispatched 49 | . . . 3 . . . 6 4 . . . 1 4 1 . . 1 3 . . 5 . . . 1 3 . . 3 6 4 4 Investigation 12 | . . . 2 . . . . 1 . . . . 2 . . . . 1 . . 2 . . . . 2 . . . . 1 1 Extermination 9 | . . . . . . . . 2 . . . . 1 . . . 1 . . . 1 . . . . . . . 2 1 . 1 Reinforcement 14 | . . . 1 . . . 2 1 . . . . 1 1 . . . . . . 2 . . . . 1 . . 1 2 1 1 Assault 6 | . . . . . . . 1 . . . . 1 . . . . . . . . . . . . 1 . . . . . 2 1 Garrison 3 | . . . . . . . 3 . . . . . . . . . . . . . . . . . . . . . . . . . Intercept 5 | . . . . . . . . . . . . . . . . . . 2 . . . . . . . . . . . 3 . . Searches Triggered . | . . . . . . . . . . . . . . . . . . . . . . . . . . . . . . . . . Construction Impeded 2 | . . . . . . . . . . . . . . . . . . . . . . . . . . . . . . 1 1 . Haulers Reinforced 2 | . . . . . . . . . . . . . 1 . . . . . . . 1 . . . . . . . . . . . Active Scanning Responses . | . . . . . . . . . . . . . . . . . . . . . . . . . . . . . . . . . Cargo Convoy Interrupts . | . . . . . . . . . . . . . . . . . . . . . . . . . . . . . . . . . Stealth | -11 -10 -10 -9 -9 -9 -8 -8 -7 -7 -7 -7 -6 -6 -6 -6 -6 -6 -5 -5 -5 -4 -4 -4 -4 -3 -3 -3 -3 -2 -2 -1 -1 --------- Run | Scr Mat Min Mat Min Exi Min Mat Fac Low Low Dat Pro Fac Ext Cet Arc Hub Fac Upp Upp Fac Upp Upp Zhi Pro Res Arm Lab Res Qua Acc Com Distress Signals 20 | . 1 . . . . . 1 . . . . . 1 1 2 . . . . . 3 . . . . 4 . . . 1 2 4 Communications Jammed . | . . . . . . . . . . . . . . . . . . . . . . . . . . . . . . . . . Distress Signals . | . . . . . . . . . . . . . . . . . . . . . . . . . . . . . . . . . Times Spotted 456 | . 11 22 36 5 . 3 28 29 8 2 4 16 13 23 19 7 27 14 8 4 23 2 1 . 27 11 . 1 15 28 24 45 Peak Tracking Total 14 | . 3 14 3 2 . 1 4 3 5 1 4 8 3 6 5 1 5 5 7 4 6 1 1 . 13 5 . 1 5 5 8 6 Tactical Retreats 10 | . 1 1 2 1 . . 2 . . . . . . . . . . . . . . . . . 1 . . . . . 1 1 Traps | -11 -10 -10 -9 -9 -9 -8 -8 -7 -7 -7 -7 -6 -6 -6 -6 -6 -6 -5 -5 -5 -4 -4 -4 -4 -3 -3 -3 -3 -2 -2 -1 -1 ------- Run | Scr Mat Min Mat Min Exi Min Mat Fac Low Low Dat Pro Fac Ext Cet Arc Hub Fac Upp Upp Fac Upp Upp Zhi Pro Res Arm Lab Res Qua Acc Com Traps Triggered 19 | . 5 . . . . . . 6 . . . . 1 . . . 2 . . . . . . . . . . . . 3 1 1 Indirectly 1 | . . . . . . . . . . . . . . . . . 1 . . . . . . . . . . . . . . . Trap Hack Attempts . | . . . . . . . . . . . . . . . . . . . . . . . . . . . . . . . . . Triggered . | . . . . . . . . . . . . . . . . . . . . . . . . . . . . . . . . . Disarmed . | . . . . . . . . . . . . . . . . . . . . . . . . . . . . . . . . . Reprogrammed 11 | . 4 . 2 . . . 5 . . . . . . . . . . . . . . . . . . . . . . . . . Reused 3 | . . . 1 . . . 2 . . . . . . . . . . . . . . . . . . . . . . . . . Traps Extracted . | . . . . . . . . . . . . . . . . . . . . . . . . . . . . . . . . . Installed . | . . . . . . . . . . . . . . . . . . . . . . . . . . . . . . . . . Triggered 8 | . . . 1 . . . 2 . . . . 1 . . . . . . 2 . . 2 . . . . . . . . . . Machines | -11 -10 -10 -9 -9 -9 -8 -8 -7 -7 -7 -7 -6 -6 -6 -6 -6 -6 -5 -5 -5 -4 -4 -4 -4 -3 -3 -3 -3 -2 -2 -1 -1 ---------- Run | Scr Mat Min Mat Min Exi Min Mat Fac Low Low Dat Pro Fac Ext Cet Arc Hub Fac Upp Upp Fac Upp Upp Zhi Pro Res Arm Lab Res Qua Acc Com Machines Disabled 60 | . . . 13 . . 1 9 2 . 1 . . 2 2 1 . 6 1 . . 1 . . . . 1 . 2 2 10 1 5 Max in Single Turn 5 | . . . 4 . . 1 4 1 . 1 . . 1 1 1 . 4 1 . . 1 . . . . 1 . 1 1 5 1 2 Garrison Access 3 | . . . . . . . 1 1 . . . . . . . . . 1 . . . . . . . . . . . . . . Network Hub 1 | . . . . . . . . . . . . . . . . . 1 . . . . . . . . . . . . . . . Machines Sabotaged . | . . . . . . . . . . . . . . . . . . . . . . . . . . . . . . . . . Garrisons Compromised . | . . . . . . . . . . . . . . . . . . . . . . . . . . . . . . . . . Overloaded Fab Kills . | . . . . . . . . . . . . . . . . . . . . . . . . . . . . . . . . . Hacking | -11 -10 -10 -9 -9 -9 -8 -8 -7 -7 -7 -7 -6 -6 -6 -6 -6 -6 -5 -5 -5 -4 -4 -4 -4 -3 -3 -3 -3 -2 -2 -1 -1 --------- Run | Scr Mat Min Mat Min Exi Min Mat Fac Low Low Dat Pro Fac Ext Cet Arc Hub Fac Upp Upp Fac Upp Upp Zhi Pro Res Arm Lab Res Qua Acc Com Machines Accessed 103 | . 7 . 9 1 . . 7 10 . . 4 . 5 16 2 . 6 5 . . 5 . . 4 . 3 . 2 2 5 4 6 Terminals 76 | . 6 . 8 1 . . 6 6 . . . . 2 16 2 . 6 1 . . 3 . . . . 3 . . 1 5 4 6 Fabricators 6 | . . . . . . . . 1 . . . . 2 . . . . 1 . . 2 . . . . . . . . . . . Repair Stations 6 | . . . 1 . . . 1 1 . . . . 1 . . . . 1 . . . . . . . . . . 1 . . . Recycling Units 2 | . 1 . . . . . . 1 . . . . . . . . . . . . . . . . . . . . . . . . Scanalyzers 1 | . . . . . . . . . . . . . . . . . . 1 . . . . . . . . . . . . . . Garrison Access 2 | . . . . . . . . 1 . . . . . . . . . 1 . . . . . . . . . . . . . . Total Hacks 329 | . 32 . 38 2 . . 30 20 . . 33 . 11 25 2 . 14 16 . . 24 . . 13 . 10 . 20 10 12 6 11 Successful 232 | . 24 . 26 2 . . 22 11 . . 33 . 7 12 2 . 7 15 . . 9 . . 13 . 6 . 20 7 8 4 4 Failed 97 | . 8 . 12 . . . 8 9 . . . . 4 13 . . 7 1 . . 15 . . . . 4 . . 3 4 2 7 Catastrophic 9 | . . . . . . . 2 1 . . . . . 1 . . 1 . . . 1 . . . . . . . . . . 3 Database Lockouts . | . . . . . . . . . . . . . . . . . . . . . . . . . . . . . . . . . Manual 133 | . 23 . 32 3 . . 14 9 . . . . . 8 . . 10 3 . . 11 . . . . 5 . . 2 8 . 5 Terminals 196 | . 28 . 36 2 . . 18 11 . . . . 4 25 2 . 14 2 . . 13 . . . . 10 . . 2 12 6 11 Fabricators 20 | . . . . . . . . 2 . . . . 5 . . . . 2 . . 11 . . . . . . . . . . . Repair Stations 29 | . . . 2 . . . 12 3 . . . . 2 . . . . 2 . . . . . . . . . . 8 . . . Recycling Units 7 | . 4 . . . . . . 3 . . . . . . . . . . . . . . . . . . . . . . . . Scanalyzers 8 | . . . . . . . . . . . . . . . . . . 8 . . . . . . . . . . . . . . Garrison Access 3 | . . . . . . . . 1 . . . . . . . . . 2 . . . . . . . . . . . . . . Terminal Hacks 154 | . 18 . 15 2 . . 8 2 . . 33 . 2 10 2 . 4 2 . . 4 . . 13 . 3 . 20 1 7 4 4 Record 42 | . . . . . . . . . . . 11 . . . 1 . 1 . . . 1 . . 5 . . . 20 . 3 . . Part Schematic 22 | . 3 . 3 . . . . . . . 12 . . . . . . . . . . . . 4 . . . . . . . . Robot Schematic 7 | . . . . . . . . . . . 7 . . . . . . . . . . . . . . . . . . . . . Robot Analysis 8 | . 5 . 2 . . . 1 . . . . . . . . . . . . . . . . . . . . . . . . . Prototype ID Bank 9 | . 1 . 1 . . . . . . . 3 . . . . . . . . . . . . 4 . . . . . . . . Open Door 16 | . . . . . . . . . . . . . 1 10 1 . . . . . . . . . . . . . . 1 3 . Level Access Points 4 | . . . . . . . . . . . . . . . . . 1 . . . . . . . . . . . . 1 1 1 Branch Access Points 7 | . 1 . . . . . 1 1 . . . . 1 . . . . . . . 1 . . . . 1 . . 1 . . . Terminal Index 3 | . 1 . 1 . . . . . . . . . . . . . . . . . . . . . . . . . . . . 1 Repair Station Index 1 | . 1 . . . . . . . . . . . . . . . . . . . . . . . . . . . . . . . Recycling Unit Index 1 | . 1 . . . . . . . . . . . . . . . . . . . . . . . . . . . . . . . Alert Level 2 | . . . . . . . . . . . . . . . . . 1 . . . . . . . . 1 . . . . . . Unreport Threat 19 | . 2 . 3 2 . . 3 1 . . . . . . . . 1 2 . . 2 . . . . 1 . . . 2 . . Locate Traps 3 | . 1 . 1 . . . 1 . . . . . . . . . . . . . . . . . . . . . . . . . Reprogram Traps 3 | . 1 . 1 . . . 1 . . . . . . . . . . . . . . . . . . . . . . . . . Hauler Manifests 1 | . . . 1 . . . . . . . . . . . . . . . . . . . . . . . . . . . . . Zone Layout 4 | . 1 . 2 . . . 1 . . . . . . . . . . . . . . . . . . . . . . . . . Disengage Seal 2 | . . . . . . . . . . . . . . . . . . . . . . . . . . . . . . . . 2 Fabricator Hacks 9 | . . . . . . . . 1 . . . . 3 . . . . 2 . . 3 . . . . . . . . . . . Load Schematic 5 | . . . . . . . . . . . . . 2 . . . . 1 . . 2 . . . . . . . . . . . Build 4 | . . . . . . . . 1 . . . . 1 . . . . 1 . . 1 . . . . . . . . . . . Repair Station Hacks 26 | . . . 2 . . . 12 2 . . . . 2 . . . . 2 . . . . . . . . . . 6 . . . Scan Component 13 | . . . 1 . . . 6 1 . . . . 1 . . . . 1 . . . . . . . . . . 3 . . . Repair 13 | . . . 1 . . . 6 1 . . . . 1 . . . . 1 . . . . . . . . . . 3 . . . Recycling Unit Hacks 2 | . 1 . . . . . . 1 . . . . . . . . . . . . . . . . . . . . . . . . Retrieve Components 2 | . 1 . . . . . . 1 . . . . . . . . . . . . . . . . . . . . . . . . Scanalyzer 7 | . . . . . . . . . . . . . . . . . . 7 . . . . . . . . . . . . . . Insert Component 2 | . . . . . . . . . . . . . . . . . . 2 . . . . . . . . . . . . . . Analyze 5 | . . . . . . . . . . . . . . . . . . 5 . . . . . . . . . . . . . . Garrison Access Hacks 2 | . . . . . . . . 1 . . . . . . . . . 1 . . . . . . . . . . . . . . Seal Access 2 | . . . . . . . . 1 . . . . . . . . . 1 . . . . . . . . . . . . . . Unauthorized Hacks 32 | . 5 . 9 . . . 2 4 . . . . . 2 . . 3 1 . . 2 . . . . 3 . . . 1 . . Terminals 27 | . 3 . 9 . . . 2 3 . . . . . 2 . . 3 . . . 1 . . . . 3 . . . 1 . . Track 3 | . 1 . 2 . . . . . . . . . . . . . . . . . . . . . . . . . . . . . Assimilate 2 | . . . . . . . . 2 . . . . . . . . . . . . . . . . . . . . . . . . Botnet 10 | . 1 . 2 . . . . 1 . . . . . 2 . . 1 . . . 1 . . . . 1 . . . 1 . . Detonate 4 | . . . 3 . . . 1 . . . . . . . . . . . . . . . . . . . . . . . . . Disrupt 2 | . . . . . . . . . . . . . . . . . 1 . . . . . . . . 1 . . . . . . Operators 5 | . 1 . 1 . . . 1 . . . . . . . . . 1 . . . . . . . . 1 . . . . . . Sabotage 1 | . . . 1 . . . . . . . . . . . . . . . . . . . . . . . . . . . . . Fabricators 1 | . . . . . . . . . . . . . . . . . . . . . 1 . . . . . . . . . . . Prioritize 1 | . . . . . . . . . . . . . . . . . . . . . 1 . . . . . . . . . . . Repair Stations . | . . . . . . . . . . . . . . . . . . . . . . . . . . . . . . . . . Recycling Units 3 | . 2 . . . . . . 1 . . . . . . . . . . . . . . . . . . . . . . . . Reject 1 | . 1 . . . . . . . . . . . . . . . . . . . . . . . . . . . . . . . Mask 2 | . 1 . . . . . . 1 . . . . . . . . . . . . . . . . . . . . . . . . Scanalyzers . | . . . . . . . . . . . . . . . . . . . . . . . . . . . . . . . . . Garrison Access 1 | . . . . . . . . . . . . . . . . . . 1 . . . . . . . . . . . . . . Watchers 1 | . . . . . . . . . . . . . . . . . . 1 . . . . . . . . . . . . . . Data Cores Recovered 3 | . . . 1 . . . . 1 . . . . . . . . . 1 . . . . . . . . . . . . . . Used 2 | . . . 1 . . . . 1 . . . . . . . . . . . . . . . . . . . . . . . . Hacking Detections 68 | . 7 . 9 1 . . 7 8 . . . . 3 8 1 . 5 3 . . 5 . . . . 2 . . 2 2 1 4 Full Trace Events 8 | . . . 1 . . . . 1 . . . . 2 . . . . 1 . . 2 . . . . 1 . . . . . . Feedback Events . | . . . . . . . . . . . . . . . . . . . . . . . . . . . . . . . . . Feedback Blocked . | . . . . . . . . . . . . . . . . . . . . . . . . . . . . . . . . . Robot Schematics Acquired 7 | . . . . . . . . . . . 7 . . . . . . . . . . . . . . . . . . . . . Robots Built 4 | . . . . . . . . 2 . . . . . . . . . . . . 2 . . . . . . . . . . . Authchips . | . . . . . . . . . . . . . . . . . . . . . . . . . . . . . . . . . Time 268 | . . . . . . . . 116 . . . . 76 . . . . . . . 76 . . . . . . . . . . . Total Robot Build Rating 16 | . . . . . . . . 6 . . . . . . . . . . . . 10 . . . . . . . . . . . Part Schematics Acquired 23 | . 3 . 3 . . . . . . . 12 . . . . . . 1 . . . . . 4 . . . . . . . . Parts Built 2 | . . . . . . . . . . . . . . . . . . 2 . . . . . . . . . . . . . . Authchips . | . . . . . . . . . . . . . . . . . . . . . . . . . . . . . . . . . Time 84 | . . . . . . . . . . . . . . . . . . 84 . . . . . . . . . . . . . . Total Part Build Rating 8 | . . . . . . . . . . . . . . . . . . 8 . . . . . . . . . . . . . . Parts Repaired 13 | . . . 1 . . . 6 1 . . . . 1 . . . . 1 . . . . . . . . . . 3 . . . Time 496 | . . . 26 . . . 234 22 . . . . 22 . . . . 35 . . . . . . . . . . 157 . . . Parts Recycled . | . . . . . . . . . . . . . . . . . . . . . . . . . . . . . . . . . Recycled Matter . | . . . . . . . . . . . . . . . . . . . . . . . . . . . . . . . . . Retrieved Matter . | . . . . . . . . . . . . . . . . . . . . . . . . . . . . . . . . . Retrieved Components 6 | . 6 . . . . . . . . . . . . . . . . . . . . . . . . . . . . . . . Parts Scanalyzed 2 | . . . . . . . . . . . . . . . . . . 2 . . . . . . . . . . . . . . Part Schematics Acquired 1 | . . . . . . . . . . . . . . . . . . 1 . . . . . . . . . . . . . . Parts Damaged . | . . . . . . . . . . . . . . . . . . . . . . . . . . . . . . . . . Bothacking | -11 -10 -10 -9 -9 -9 -8 -8 -7 -7 -7 -7 -6 -6 -6 -6 -6 -6 -5 -5 -5 -4 -4 -4 -4 -3 -3 -3 -3 -2 -2 -1 -1 ------------ Run | Scr Mat Min Mat Min Exi Min Mat Fac Low Low Dat Pro Fac Ext Cet Arc Hub Fac Upp Upp Fac Upp Upp Zhi Pro Res Arm Lab Res Qua Acc Com Used RIF Installer . | . . . . . . . . . . . . . . . . . . . . . . . . . . . . . . . . . Robots Hacked . | . . . . . . . . . . . . . . . . . . . . . . . . . . . . . . . . . Non-combat . | . . . . . . . . . . . . . . . . . . . . . . . . . . . . . . . . . Combat . | . . . . . . . . . . . . . . . . . . . . . . . . . . . . . . . . . Robot Hacks Applied . | . . . . . . . . . . . . . . . . . . . . . . . . . . . . . . . . . Relay Couplers Released 3 | . . . . . . . 3 . . . . . . . . . . . . . . . . . . . . . . . . . Machine Destruction 3 | . . . . . . . 3 . . . . . . . . . . . . . . . . . . . . . . . . . Fabnet Peak Effective % . | . . . . . . . . . . . . . . . . . . . . . . . . . . . . . . . . . Robots Rewired 10 | . . . . . . . . . . 4 . 2 . . . . . . 2 . . . . . 2 . . . . . . . Allies Hacked . | . . . . . . . . . . . . . . . . . . . . . . . . . . . . . . . . . Hacks Repelled . | . . . . . . . . . . . . . . . . . . . . . . . . . . . . . . . . . Allies | -11 -10 -10 -9 -9 -9 -8 -8 -7 -7 -7 -7 -6 -6 -6 -6 -6 -6 -5 -5 -5 -4 -4 -4 -4 -3 -3 -3 -3 -2 -2 -1 -1 -------- Run | Scr Mat Min Mat Min Exi Min Mat Fac Low Low Dat Pro Fac Ext Cet Arc Hub Fac Upp Upp Fac Upp Upp Zhi Pro Res Arm Lab Res Qua Acc Com Total Allies 93 | . . . . 1 . . . 3 . 4 . 2 . 14 . . . . 2 . 2 . . . 2 . . . . . . 63 Largest Group 29 | . . . . 1 1 . . 2 1 5 4 2 2 6 6 . . . 2 . 2 1 1 1 2 1 . . . . . 29 Highest-Rated Group 819 | . . . . 31 31 . . 42 10 95 70 59 59 280 182 . . . 59 . 82 41 41 41 106 64 . . . . . 819 Highest-Rated Ally 234 | . . . . 31 31 . . 21 10 25 20 30 30 159 39 . . . 30 . 41 41 41 41 64 64 . . . . . 234 Total Orders . | . . . . . . . . . . . . . . . . . . . . . . . . . . . . . . . . . Ally Attacks 413 | . . . . . . . . 11 . 4 . 27 16 40 38 . . . 5 . 6 . 2 . 13 7 . . . . . 244 Total Damage 9277 | . . . . . . . . 201 . 128 . 590 313 922 711 . . . 100 . . . 85 . 424 286 . . . . . 5517 Kills 50 | . . . . . . . . 2 . . . 3 2 6 7 . . . . . . . . . 2 2 . . . . . 26 Allies Corrupted 2 | . . . . . . . . . . . . . 1 . . . . . . . . . . . . . . . . . . 1 Allies Melted 1 | . . . . . . . . . . . . . . 1 . . . . . . . . . . . . . . . . . . Intel | -11 -10 -10 -9 -9 -9 -8 -8 -7 -7 -7 -7 -6 -6 -6 -6 -6 -6 -5 -5 -5 -4 -4 -4 -4 -3 -3 -3 -3 -2 -2 -1 -1 ------- Run | Scr Mat Min Mat Min Exi Min Mat Fac Low Low Dat Pro Fac Ext Cet Arc Hub Fac Upp Upp Fac Upp Upp Zhi Pro Res Arm Lab Res Qua Acc Com Robot Analysis Total 136 | . 5 . 2 . . . 1 . . . 128 . . . . . . . . . . . . . . . . . . . . . Derelict Logs Recovered 9 | . . . . 1 . . . . . 1 . 1 . . . . . . 3 . . 2 1 . . . . . . . . . Drone Launches . | . . . . . . . . . . . . . . . . . . . . . . . . . . . . . . . . . Drone Recoveries . | . . . . . . . . . . . . . . . . . . . . . . . . . . . . . . . . . Exploration | -11 -10 -10 -9 -9 -9 -8 -8 -7 -7 -7 -7 -6 -6 -6 -6 -6 -6 -5 -5 -5 -4 -4 -4 -4 -3 -3 -3 -3 -2 -2 -1 -1 ------------- Run | Scr Mat Min Mat Min Exi Min Mat Fac Low Low Dat Pro Fac Ext Cet Arc Hub Fac Upp Upp Fac Upp Upp Zhi Pro Res Arm Lab Res Qua Acc Com Turns Passed 22802 | 45 996 49 1661 639 431 835 1237 2583 554 741 321 897 585 1270 600 272 923 892 562 199 871 472 370 288 732 386 3 362 832 898 352 944 Spaces Moved 11905 | 15 561 19 891 407 298 536 572 1506 335 461 142 451 278 635 262 132 470 451 305 117 365 282 226 159 368 186 1 188 277 426 168 415 Core . | . . . . . . . . . . . . . . . . . . . . . . . . . . . . . . . . . Treads 11905 | 15 561 19 891 407 298 536 572 1506 335 461 142 451 278 635 262 132 470 451 305 117 365 282 226 159 368 186 1 188 277 426 168 415 Legs . | . . . . . . . . . . . . . . . . . . . . . . . . . . . . . . . . . Wheels . | . . . . . . . . . . . . . . . . . . . . . . . . . . . . . . . . . Hover . | . . . . . . . . . . . . . . . . . . . . . . . . . . . . . . . . . Flight . | . . . . . . . . . . . . . . . . . . . . . . . . . . . . . . . . . Fastest Speed 145 | 160 160 160 145 145 145 145 145 145 145 145 145 156 156 161 160 160 160 160 160 160 160 160 160 160 160 160 160 160 160 156 156 156 Average Speed 156 | 160 160 160 154 145 145 145 145 154 145 145 156 163 159 163 161 160 160 160 160 160 184 160 160 160 160 160 160 160 160 159 156 156 Slowest Speed 245 | 160 160 160 160 145 145 145 145 225 145 145 241 235 161 245 165 160 160 160 160 160 240 160 160 160 160 160 160 160 160 160 156 156 Overloaded Moves . | . . . . . . . . . . . . . . . . . . . . . . . . . . . . . . . . . Propulsion Burnouts . | . . . . . . . . . . . . . . . . . . . . . . . . . . . . . . . . . Robots Hopped . | . . . . . . . . . . . . . . . . . . . . . . . . . . . . . . . . . Cave-ins Triggered . | . . . . . . . . . . . . . . . . . . . . . . . . . . . . . . . . . Teleports 2 | . . . . . . . . . . . . . . . . . . . . . . . . . . . 1 . . 1 . . Exploration Rate (%) 48 | 2 93 11 89 88 80 91 42 48 47 64 82 72 10 83 72 77 57 9 46 17 14 56 48 61 51 8 1 97 6 43 7 22 Regions Visited 32 Branch Regions 22 Pre-discovered Areas 29 | . . . . 1 . . . . . . 24 . . . . . . . 1 . . . . 3 . . . . . . . . Known Exits Taken 32 | 1 1 1 1 1 1 1 1 1 1 1 1 1 1 1 1 1 1 1 1 1 1 1 1 1 1 1 1 1 1 1 1 . Unknown Exits Taken . | . . . . . . . . . . . . . . . . . . . . . . . . . . . . . . . . . Scrap Searched 11 | . . . . . . . . . . 1 . 2 . . . . . . 2 . . 3 2 . 1 . . . . . . . Spaces Dug 106 | . . . . . . . . . 3 1 . . 4 . . . 9 15 12 . 13 . . . 7 9 . . 23 6 . 4 Terrain Destroyed 782 | . . . 39 . . . 260 1 3 1 17 10 22 3 14 . 177 30 21 1 22 1 . . 25 13 . . 38 30 33 21 Melee . | . . . . . . . . . . . . . . . . . . . . . . . . . . . . . . . . . Projectile 258 | . . . . . . . . 1 3 1 . 8 10 3 14 . 20 30 21 1 22 1 . . 25 13 . . 38 25 1 21 AOE 524 | . . . 39 . . . 260 . . . 17 2 12 . . . 157 . . . . . . . . . . . . 5 32 . Terrain Rammed . | . . . . . . . . . . . . . . . . . . . . . . . . . . . . . . . . . Walls Destroyed . | . . . . . . . . . . . . . . . . . . . . . . . . . . . . . . . . . Machines Disabled . | . . . . . . . . . . . . . . . . . . . . . . . . . . . . . . . . . Actions | -11 -10 -10 -9 -9 -9 -8 -8 -7 -7 -7 -7 -6 -6 -6 -6 -6 -6 -5 -5 -5 -4 -4 -4 -4 -3 -3 -3 -3 -2 -2 -1 -1 --------- Run | Scr Mat Min Mat Min Exi Min Mat Fac Low Low Dat Pro Fac Ext Cet Arc Hub Fac Upp Upp Fac Upp Upp Zhi Pro Res Arm Lab Res Qua Acc Com Total 14449 | 24 622 26 1084 438 297 576 894 1665 361 515 196 540 360 766 358 174 570 571 340 120 481 293 228 193 428 229 2 240 586 531 202 539 Wait 1113 | . 24 2 80 23 . 32 252 49 2 15 1 1 27 38 19 14 35 78 7 . 60 . . 14 15 15 . 16 261 14 2 17 Move 11872 | 14 560 18 890 406 297 535 571 1505 334 460 141 450 277 634 261 131 469 450 304 116 364 281 225 158 367 185 . 187 276 425 167 414 Hop . | . . . . . . . . . . . . . . . . . . . . . . . . . . . . . . . . . Pick Up 170 | 1 7 . 24 . . . 8 18 . . 4 14 6 13 17 5 9 6 1 . 5 2 . 4 2 4 . 3 4 7 . 6 Fast Attach 66 | . 2 . 5 . . . 7 6 . . 4 1 2 4 1 . 2 . . . 1 . . 4 . . . 13 1 8 . 5 Attach 78 | . 1 . 1 . . . 4 4 . . 9 6 7 12 4 . . 2 . . 5 . . . . 3 1 2 4 4 1 8 Detach 5 | . . . . . . . 1 . . . . . 2 . . . . . . . . . . . . . . 1 . 1 . . Swap 94 | 3 . . 11 . . . 2 8 5 1 1 4 4 7 10 2 2 6 2 . 1 4 . 5 . . 1 2 2 8 3 . Drop 159 | . 6 . 23 . . . 6 22 . 1 1 4 4 8 8 7 12 4 1 . 7 2 . 8 2 . . 11 . 13 . 9 Fire 825 | 6 22 6 49 9 . 9 43 53 20 11 34 33 31 50 38 14 41 25 17 4 38 4 3 . 40 22 . 5 38 51 29 80 Melee . | . . . . . . . . . . . . . . . . . . . . . . . . . . . . . . . . . Ram . | . . . . . . . . . . . . . . . . . . . . . . . . . . . . . . . . . Kick . | . . . . . . . . . . . . . . . . . . . . . . . . . . . . . . . . . Crush 3 | . . . 1 . . . . . . . 1 . . . . 1 . . . . . . . . . . . . . . . . Escape Stasis . | . . . . . . . . . . . . . . . . . . . . . . . . . . . . . . . . . Rewire 64 | . . . . . . . . . . 27 . 27 . . . . . . 8 . . . . . 2 . . . . . . . Trap . | . . . . . . . . . . . . . . . . . . . . . . . . . . . . . . . . . Miscellaneous . | . . . . . . . . . . . . . . . . . . . . . . . . . . . . . . . . . Route ------- -11/Scrapyard -10/Materials (discovered 4 exits: *Mat x3 / *Min) -10/Mines -9/Materials (discovered 5 exits: *Mat x3 / *Min x2) -9/Mines (discovered 3 exits: *Mat x2 / *Exi) -9/Exiles -8/Mines (discovered 2 exits: *Mat x2) -8/Materials -7/Factory (discovered 5 exits: *Fac x2 / *Sto / *Low x2) -7/Lower Caves -7/Lower Caves -7/Data Miner -6/Proximity Caves -6/Factory (discovered 4 exits: Low x2 / *Ext x2) -6/Extension (discovered 3 exits: *Fac x2 / *Cet) -6/Cetus (discovered 2 exits: *Fac / *Arc) -6/Archives (discovered 2 exits: *Fac / *Hub) -6/Hub_04(d) (discovered 4 exits: *Fac x4) -5/Factory -5/Upper Caves -5/Upper Caves -4/Factory (discovered 3 exits: Res / *Upp x2) -4/Upper Caves -4/Upper Caves -4/Zhirov -3/Proximity Caves -3/Research (discovered 3 exits: *Arm / Tes x2) -3/Armory -3/Lab -2/Research (discovered 2 exits: *Qua x2) -2/Quarantine -1/Access (discovered 2 exits: Sur / *Com) -1/Command (discovered 2 exits: *Sur x2) Tau Ceti IV Orbit History --------- Turn | Location | Event 9 | -11/Scrapyard | Identified exit to Materials 9 | -11/Scrapyard | Discovered exit to Materials (range 2) 46 | -11/Scrapyard | Entered Materials 46 | -10/Materials | Evolved 1 slot: Utility x1 234 | -10/Materials | Identified exit to Mines 234 | -10/Materials | Discovered exit to Mines (range 13) 314 | -10/Materials | Build established: Hacker-Mutant 405 | -10/Materials | Identified exit to Materials 405 | -10/Materials | Discovered exit to Materials (range 3) 682 | -10/Materials | Discovered exit to Materials (range 12) 858 | -10/Materials | Discovered exit to Materials (range 9) 1042 | -10/Materials | Entered Mines 1043 | -10/Mines | Assembled infested the area 1048 | -10/Mines | Assisted by a Guerilla fighting off Assembled 1069 | -10/Mines | Discovered exit to Materials (range 9) 1091 | -10/Mines | Entered Materials 1091 | -9/Materials | Evolved 2 slots: Propulsion x1, Utility x1 1354 | -9/Materials | Identified exit to Materials 1354 | -9/Materials | Discovered exit to Materials (range 11) 1445 | -9/Materials | Identified exit to Mines 1445 | -9/Materials | Discovered exit to Mines (range 8) 1617 | -9/Materials | Repaired Lgt. Armor Plating 1845 | -9/Materials | Discovered exit to Mines (range 12) 1919 | -9/Materials | Discovered exit to Materials (range 5) 2388 | -9/Materials | Discovered exit to Materials (range 9) 2752 | -9/Materials | Entered Mines 2765 | -9/Mines | Met a Derelict bent on vengeance 3094 | -9/Mines | Discovered exit to Materials (range 9) 3108 | -9/Mines | Discovered exit to Materials (range 6) 3194 | -9/Mines | Learned location of Zion (-6) 3280 | -9/Mines | Received a Mining Laser from a helpful Derelict 3384 | -9/Mines | Deemed a non-threat by the Exiles lab entrance 3384 | -9/Mines | Identified exit to Exiles 3384 | -9/Mines | Discovered exit to Exiles (range 5) 3391 | -9/Mines | Entered Exiles 3391 | -9/Exiles | Accompanied by 1 ally 3425 | -9/Exiles | Met 8R-AWN 3452 | -9/Exiles | Met EX-HEX 3492 | -9/Exiles | Met EX-BIN 3541 | -9/Exiles | Met EX-DEC 3568 | -9/Exiles | Visited The Gauntlet 3805 | -9/Exiles | Identified exit to Mines 3805 | -9/Exiles | Discovered exit to Mines (range 11) 3822 | -9/Exiles | Entered Mines 3909 | -8/Mines | Discovered exit to Materials (range 13) 4056 | -8/Mines | Discovered exit to Materials (range 8) 4657 | -8/Mines | Entered Materials 4657 | -8/Materials | Evolved 2 slots: Propulsion x1, Utility x1 5105 | -8/Materials | Identified exit to Factory 5105 | -8/Materials | Discovered exit to Factory (range 13) 5526 | -8/Materials | Repaired Med. Armor Plating 5566 | -8/Materials | Repaired Adv. Treads 5605 | -8/Materials | Repaired Adv. Treads 5645 | -8/Materials | Repaired Adv. Treads 5684 | -8/Materials | Repaired Adv. Treads 5736 | -8/Materials | Repaired Adv. Heat Sink 5894 | -8/Materials | Entered Factory 5894 | -7/Factory | Evolved 2 slots: Utility x2 6025 | -7/Factory | Identified exit to Storage 6025 | -7/Factory | Discovered exit to Storage (range 4) 6268 | -7/Factory | Identified exit to Factory 6268 | -7/Factory | Discovered exit to Factory (range 8) 6302 | -7/Factory | Fabricated H-55 Commando? 7887 | -7/Factory | Discovered exit to Factory (range 5) 8142 | -7/Factory | Repaired Imp. Medium Armor Plating 8341 | -7/Factory | Identified exit to Lower Caves 8477 | -7/Factory | Entered Lower Caves 8477 | -7/Lower Caves | Accompanied by 1 ally 8619 | -7/Lower Caves | Attracted the attention of an 0b10 checkpoint 9007 | -7/Lower Caves | Identified exit to Lower Caves 9007 | -7/Lower Caves | Discovered exit to Lower Caves (range 18) 9008 | -7/Lower Caves | Encountered a Warlord checkpoint 9031 | -7/Lower Caves | Entered another Lower Caves area 9031 | -7/Lower Caves | Accompanied by 1 ally 9196 | -7/Lower Caves | Attacked by a delusional Derelict stockpiling Unaware 9350 | -7/Lower Caves | Learned Factory garrison access intel 9401 | -7/Lower Caves | Encountered a Warlord checkpoint 9548 | -7/Lower Caves | Build established: Commander-Mutant 9582 | -7/Lower Caves | Spotted B-75 Beast 9597 | -7/Lower Caves | Destroyed B-75 Beast 9763 | -7/Lower Caves | Identified exit to Data Miner 9763 | -7/Lower Caves | Discovered exit to Data Miner (range 4) 9772 | -7/Lower Caves | Entered Data Miner 9772 | -7/Data Miner | Accompanied by 4 allies 9772 | -7/Data Miner | Identified exit to Proximity Caves 9772 | -7/Data Miner | Discovered exit to Proximity Caves (range 6) 9794 | -7/Data Miner | Met Data Miner 9825 | -7/Data Miner | Learned location of Section 7 (-2) 9825 | -7/Data Miner | Acquired the access code to Warlord's prototype stash 9851 | -7/Data Miner | Received God Mode back door access code from Data Miner 9861 | -7/Data Miner | Interfaced with the Data Conduit 9954 | -7/Data Miner | Build established: Hacker-Mutant 9982 | -7/Data Miner | Lost 12 parts (1p4n3u4w) 10093 | -7/Data Miner | Entered Proximity Caves 10269 | -6/Proximity Caves | Build established: Scavenger-Mutant 10355 | -6/Proximity Caves | Spotted B-75 Beast 10405 | -6/Proximity Caves | Destroyed B-75 Beast 10420 | -6/Proximity Caves | Learned Factory terminal intel 10436 | -6/Proximity Caves | Lost 3 parts (2n1u) 10601 | -6/Proximity Caves | Attracted the attention of an 0b10 outpost 10659 | -6/Proximity Caves | Destroyed 7 combat bots 10957 | -6/Proximity Caves | Discovered exit to Factory (range 17) 10990 | -6/Proximity Caves | Entered Factory 10990 | -6/Factory | Accompanied by 2 allies 10990 | -6/Factory | Evolved 2 slots: Utility x2 10991 | -6/Factory | Loaded intel: 240 machine locations 10992 | -6/Factory | Loaded intel: 28 terminal locations 10993 | -6/Factory | Loaded intel: 2 garrison access locations 11157 | -6/Factory | Repaired Broken Imp. Treads 11487 | -6/Factory | Identified exit to Lower Caves 11487 | -6/Factory | Identified exit to Extension 11529 | -6/Factory | Build established: Hacker-Mutant 11575 | -6/Factory | Entered Extension 11576 | -6/Extension | Loaded intel: 39 machine locations 11642 | -6/Extension | Rescued a captive Derelict 11642 | -6/Extension | Rescued a captive Derelict 11651 | -6/Extension | Rescued a captive Derelict 11652 | -6/Extension | Rescued a captive Derelict 11785 | -6/Extension | Rescued A7 11886 | -6/Extension | Rescued a captive Derelict 11888 | -6/Extension | Rescued a captive Derelict 11919 | -6/Extension | Rescued a captive Derelict 12247 | -6/Extension | Spotted B-75 Beast 12265 | -6/Extension | Spotted B-75 Beast 12308 | -6/Extension | Destroyed B-75 Beast 12366 | -6/Extension | Extracted ID and sensor layout for unrecognized location from A7's data core 12403 | -6/Extension | Destroyed B-75 Beast 12413 | -6/Extension | Lost 11 parts (2p4n3u2w) 12454 | -6/Extension | Identified exit to Factory 12454 | -6/Extension | Discovered exit to Factory (range 4) 12668 | -6/Extension | Rescued a captive Derelict 12669 | -6/Extension | Rescued a captive Derelict 12736 | -6/Extension | Rescued a captive Derelict 12737 | -6/Extension | Rescued a captive Derelict 12760 | -6/Extension | Rescued a captive Derelict 12786 | -6/Extension | Rescued a captive Derelict 12816 | -6/Extension | Discovered exit to Factory (range 10) 12818 | -6/Extension | Identified exit to Cetus 12818 | -6/Extension | Discovered exit to Cetus (range 6) 12845 | -6/Extension | Disrupted transfer network 12845 | -6/Extension | Entered Cetus 12845 | -6/Cetus | Accompanied by 6 allies 12846 | -6/Cetus | Loaded intel: 24 machine locations 12865 | -6/Cetus | Spotted Cetus Guard 12867 | -6/Cetus | Spotted Cetus Guard 12869 | -6/Cetus | Spotted Cetus Guard 12873 | -6/Cetus | Spotted Cetus Guard 12883 | -6/Cetus | Allies destroyed Cetus Guard 12889 | -6/Cetus | Destroyed Cetus Guard 12893 | -6/Cetus | Allies destroyed Cetus Guard 12900 | -6/Cetus | Allies destroyed Cetus Guard 13048 | -6/Cetus | Found a strange terminal 13100 | -6/Cetus | Identified exit to Archives 13100 | -6/Cetus | Discovered exit to Archives (range 19) 13136 | -6/Cetus | Spotted Cetus Guard 13138 | -6/Cetus | Spotted Cetus Guard 13138 | -6/Cetus | Spotted Cetus Guard 13163 | -6/Cetus | Spotted Cetus Guard 13182 | -6/Cetus | Build established: Scavenger-Mutant 13205 | -6/Cetus | Destroyed Cetus Guard 13223 | -6/Cetus | Destroyed Cetus Guard 13257 | -6/Cetus | Destroyed Cetus Guard 13269 | -6/Cetus | Destroyed Cetus Guard 13365 | -6/Cetus | Discovered exit to Factory (range 20) 13379 | -6/Cetus | Met Revision 17 13445 | -6/Cetus | Entered Archives 13446 | -6/Archives | Loaded intel: 8 machine locations 13607 | -6/Archives | Unable to access archive contents 13680 | -6/Archives | Discovered exit to Factory (range 19) 13691 | -6/Archives | Unable to access archive contents 13698 | -6/Archives | Identified exit to Hub_04(d) 13698 | -6/Archives | Discovered exit to Hub_04(d) (range 13) 13717 | -6/Archives | Entered Hub_04(d) 13718 | -6/Hub_04(d) | Loaded intel: 80 machine locations 13719 | -6/Hub_04(d) | Discovered exit to Factory (range 20) 13933 | -6/Hub_04(d) | Discovered exit to Factory (range 20) 14410 | -6/Hub_04(d) | Spotted B-75 Beast 14414 | -6/Hub_04(d) | Destroyed B-75 Beast 14467 | -6/Hub_04(d) | Disrupted transfer network 14628 | -6/Hub_04(d) | Network Hub disabled 14635 | -6/Hub_04(d) | Spotted Lightning 14635 | -6/Hub_04(d) | Spotted Lightning 14637 | -6/Hub_04(d) | Spotted Lightning 14640 | -6/Hub_04(d) | Entered Factory 14640 | -5/Factory | Evolved 2 slots: Utility x1, Weapon x1 14641 | -5/Factory | Loaded intel: 266 machine locations 14761 | -5/Factory | Identified exit to Upper Caves 14761 | -5/Factory | Discovered exit to Upper Caves (range 7) 14894 | -5/Factory | Fabricated Coolant Injector? 15058 | -5/Factory | Repaired Corrupted Imp. Medium Treads 15264 | -5/Factory | Build established: Scavenger-Tank 15433 | -5/Factory | Intercept squad dispatched 15458 | -5/Factory | Spotted Tracker 15462 | -5/Factory | Destroyed Tracker 15487 | -5/Factory | Found Exp. Targeting Computer 15497 | -5/Factory | Spotted Combat Programmer 15506 | -5/Factory | Destroyed Combat Programmer 15532 | -5/Factory | Entered Upper Caves 15596 | -5/Upper Caves | Attracted the attention of an 0b10 outpost 15826 | -5/Upper Caves | Learned location of 1 exit from Factory 15863 | -5/Upper Caves | Build established: Scavenger-Skirmisher 15945 | -5/Upper Caves | Learned Factory stockpile data 16084 | -5/Upper Caves | Identified exit to Upper Caves 16084 | -5/Upper Caves | Discovered exit to Upper Caves (range 6) 16094 | -5/Upper Caves | Entered another Upper Caves area 16282 | -5/Upper Caves | Identified exit to Factory 16282 | -5/Upper Caves | Discovered exit to Factory (range 5) 16293 | -5/Upper Caves | Entered Factory 16293 | -4/Factory | Evolved 2 slots: Utility x2 16294 | -4/Factory | Identified exit to Research 16296 | -4/Factory | Loaded intel: 315 machine locations 16646 | -4/Factory | Identified exit to Upper Caves 16975 | -4/Factory | Build established: Scavenger-Tank 17103 | -4/Factory | Fabricated H-66 Slayer? 17164 | -4/Factory | Entered Upper Caves 17164 | -4/Upper Caves | Accompanied by 1 ally 17453 | -4/Upper Caves | Learned 8 Research zone layouts 17583 | -4/Upper Caves | Build established: Scavenger-Gunner 17621 | -4/Upper Caves | Identified exit to Upper Caves 17621 | -4/Upper Caves | Discovered exit to Upper Caves (range 9) 17636 | -4/Upper Caves | Entered another Upper Caves area 17636 | -4/Upper Caves | Accompanied by 1 ally 17697 | -4/Upper Caves | Learned 4 Research zone layouts 17787 | -4/Upper Caves | Attracted the attention of an 0b10 checkpoint 17865 | -4/Upper Caves | Spotted B-86 Titan 17898 | -4/Upper Caves | Encountered a Warlord checkpoint 17989 | -4/Upper Caves | Identified exit to Zhirov 17989 | -4/Upper Caves | Discovered exit to Zhirov (range 12) 18006 | -4/Upper Caves | Entered Zhirov 18006 | -4/Zhirov | Accompanied by 1 ally 18006 | -4/Zhirov | Identified exit to Proximity Caves 18006 | -4/Zhirov | Discovered exit to Proximity Caves (range 3) 18035 | -4/Zhirov | Met Zhirov 18083 | -4/Zhirov | Zhirov requested help retrieving the SGEMP Prototype 18109 | -4/Zhirov | Found Alien Artifact 18109 | -4/Zhirov | Identified Integrated Dissipator 18109 | -4/Zhirov | Installed Integrated Dissipator, increased core heat dissipation (+20) 18135 | -4/Zhirov | Found Alien Artifact 18294 | -4/Zhirov | Entered Proximity Caves 18294 | -3/Proximity Caves | Accompanied by 1 ally 18315 | -3/Proximity Caves | Spotted B-86 Titan 18509 | -3/Proximity Caves | Attracted the attention of an 0b10 outpost 18569 | -3/Proximity Caves | Destroyed 8 combat bots 18669 | -3/Proximity Caves | Destroyed 7 combat bots 18777 | -3/Proximity Caves | Attracted the attention of an 0b10 checkpoint 18909 | -3/Proximity Caves | Build established: Hacker-Tank 19010 | -3/Proximity Caves | Discovered exit to Research (range 8) 19026 | -3/Proximity Caves | Entered Research 19026 | -3/Research | Accompanied by 1 ally 19026 | -3/Research | Evolved 2 slots: Propulsion x2 19028 | -3/Research | Loaded intel: 123 machine locations 19057 | -3/Research | Identified exit to Armory 19057 | -3/Research | Identified exit to Testing 19193 | -3/Research | Spotted B-86 Titan 19226 | -3/Research | Revision forces began assault on 0b10 19400 | -3/Research | Met up with Revision 17++ 19412 | -3/Research | Entered Armory 19412 | -3/Armory | Identified Transdimensional Reconstructor 19412 | -3/Armory | Warped through subspace to slip node 19412 | -3/Armory | Identified exit to Lab 19412 | -3/Armory | Discovered exit to Lab (range 1) 19413 | -3/Armory | Loaded intel: 64 machine locations 19415 | -3/Armory | Entered Lab 19415 | -3/Lab | Identified exit to Research 19415 | -3/Lab | Discovered exit to Research (range 9) 19433 | -3/Lab | Hidden lab's door opened automatically 19433 | -3/Lab | Sensor layout match revealed 19434 | -3/Lab | Gained access to the hidden lab's interior 19436 | -3/Lab | Decrypted terminal 19456 | -3/Lab | Decrypted terminal 19500 | -3/Lab | Detected by scanners 19515 | -3/Lab | Confronted by A5 19519 | -3/Lab | Destroyed A5 19533 | -3/Lab | Decrypted terminal 19533 | -3/Lab | Acquired modification code for an L2 power cell 19581 | -3/Lab | Found Alien Artifact 19581 | -3/Lab | Identified Core Reset Matrix 19581 | -3/Lab | Used Core Reset Matrix 19585 | -3/Lab | Sensed 3 artifacts in vicinity 19604 | -3/Lab | Found Core Expander 19605 | -3/Lab | Installed Core Expander, added new Propulsion slot 19616 | -3/Lab | Found Integrated Mediator 19616 | -3/Lab | Installed Integrated Mediator, increased core attachment efficiency. 19631 | -3/Lab | Found Transdimensional Reconstructor 19656 | -3/Lab | Discovered exit to Research (range 20) 19661 | -3/Lab | Found Prototype Protection 19661 | -3/Lab | Identified Med. Regenerative Plating 19677 | -3/Lab | Found Prototype Special Weapon 19677 | -3/Lab | Identified Gui. Remote Datajack 19706 | -3/Lab | Found Prototype Energy Cannon 19706 | -3/Lab | Identified Warp Cannon 19711 | -3/Lab | Found Warp Cannon 19716 | -3/Lab | Found Med. Regenerative Plating 19721 | -3/Lab | Found Prototype Hackware 19721 | -3/Lab | Identified Deep Network Scanner 19777 | -3/Lab | Entered Research 19777 | -2/Research | Evolved 2 slots: Power x1, Utility x1 19843 | -2/Research | Repaired Centrium Heavy Treads 19899 | -2/Research | Repaired Centrium Heavy Treads 19962 | -2/Research | Repaired Cld. Phase Cannon 20003 | -2/Research | Build established: Hacker-Mutant 20027 | -2/Research | Identified exit to Quarantine 20333 | -2/Research | Build established: Hacker-Tank 20430 | -2/Research | Destroyed 8 combat bots 20609 | -2/Research | Entered Quarantine 20610 | -2/Quarantine | Detected hypermatrix surge 20610 | -2/Quarantine | Sensed 12 artifacts in vicinity 20643 | -2/Quarantine | Found Dimensional Node Initializer 20682 | -2/Quarantine | Found Hpw. Transdimensional Reconstructor 20685 | -2/Quarantine | Found Hpw. Transdimensional Reconstructor 20793 | -2/Quarantine | Found Phase Armor 20819 | -2/Quarantine | Identified exit to Access 20930 | -2/Quarantine | Build established: Hacker-Gunner 21249 | -2/Quarantine | Intercept squad dispatched 21255 | -2/Quarantine | Spotted Tracker 21255 | -2/Quarantine | Spotted Tracker 21263 | -2/Quarantine | Destroyed Tracker 21266 | -2/Quarantine | Spotted Combat Programmer 21271 | -2/Quarantine | Spotted Combat Programmer 21276 | -2/Quarantine | Destroyed Tracker 21293 | -2/Quarantine | Destroyed Combat Programmer 21306 | -2/Quarantine | Destroyed Combat Programmer 21399 | -2/Quarantine | Initialized slip node 21488 | -2/Quarantine | Met incapacitated Sigix Warrior 21488 | -2/Quarantine | Lockdown squad dispatched 21494 | -2/Quarantine | Acquired the access code to the Sigix quarantine chamber 21497 | -2/Quarantine | Unlocked Sigix quarantine chamber 21505 | -2/Quarantine | Warped through subspace to slip node 21507 | -2/Quarantine | Entered Access 21507 | -1/Access | Evolved 1 slot: Utility x1 21556 | -1/Access | Identified exit to Surface 21757 | -1/Access | First assault squad dispatched 21779 | -1/Access | Destroyed 7 combat bots 21848 | -1/Access | Identified exit to Command 21848 | -1/Access | Discovered exit to Command (range 8) 21859 | -1/Access | Entered Command 21938 | -1/Command | Build established: Hacker-Tank 22094 | -1/Command | Found Unknown Protection 22094 | -1/Command | Identified Adv. Powered Armor 22109 | -1/Command | First assault squad dispatched 22134 | -1/Command | Disengaged cave seal 22134 | -1/Command | Assembled emerged from the dark tunnel 22194 | -1/Command | Disengaged cave seal 22293 | -1/Command | Spotted B-99 Colossus 22321 | -1/Command | Allies destroyed B-99 Colossus 22370 | -1/Command | Destroyed 7 combat bots 22602 | -1/Command | Spotted Alpha 7 22607 | -1/Command | Destroyed Alpha 7 22608 | -1/Command | Spotted Striker 22611 | -1/Command | Spotted Executioner 22614 | -1/Command | Spotted Alpha 7 22627 | -1/Command | Destroyed Striker 22638 | -1/Command | Destroyed Executioner 22652 | -1/Command | Destroyed Alpha 7 22657 | -1/Command | Spotted Executioner 22658 | -1/Command | Spotted Executioner 22658 | -1/Command | Spotted Executioner 22660 | -1/Command | Spotted Striker 22666 | -1/Command | Spotted B-99 Colossus 22669 | -1/Command | Destroyed Executioner 22671 | -1/Command | Spotted B-99 Colossus 22684 | -1/Command | Destroyed Executioner 22687 | -1/Command | Destroyed Executioner 22697 | -1/Command | Lost 3 parts (1p2u) 22708 | -1/Command | Destroyed 11 combat bots 22711 | -1/Command | Destroyed Striker 22721 | -1/Command | Destroyed B-99 Colossus 22741 | -1/Command | Destroyed B-99 Colossus 22803 | *** | Destroyed 0B10! Last Messages --------------- 22735_ Slug penetrates M-36 Artificer. 22735_ M-36 Artificer destroyed. 22739_ Penetrated by Slug. 22741_ B-99 Colossus suffers critical hit (Meltdown). 22741_ Prototype Ballistic Gun melted. 22749_ Ended siege mode. 22749_ Acquired 16 matter. 22750_ System corrupted: Matter fused (-5). 22750_ Acquired 5 matter. 22753_ Acquired Exp. Core Shielding. 22754_ Acquired 5 matter. 22767_ Dropped Imp. Heavy Armor Plating. 22767_ Acquired Unknown Protection. 22768_ Identified Lyr. Heavy Armor Plating. 22772_ Dropped Broken Adv. Powered Armor. 22773_ Acquired Med. Regenerative Plating. 22777_ Acquired 5 matter. 22791_ The Access Shell folds into the floor. 22803_ System corrupted: Matter fused (-6). [Achievement: Data Run] Map ----- +----------------------------------------------------+ | | | | | | | | | | | | | | | ?????????????????????????????????????????????????? | | ?????????????????????????????????????????????????? | | ?????????????????????????????????????????????????? | | ?????????????????????????????????????????????????? | | ?????????????????????????????????????????????????? | | ?????????????????????????????????????????????????? | | ?????????????????????????????????????????????????? | | ?????????????????????????????????????????????????? | | ?????????????????????????????????????????????????? | | ?????????????????????????????????????????????????? | | ?????????????????????????????????????????????????? | | ?????????????????????????????????????????????????? | | ???????????????????##############????????????????? | | ???????????????????# #????????????????? | | ???????????????????# #????????????????? | | ???????????????????# #????????????????? | | ???????????????????# #????????????????? | | ???????????????????# #????????????????? | | ???????????????????# @" #????????????????? | | ???????????????????# "" #????????????????? | | ???????????????????# ^ ^ #????????????????? | | ???????????????????# ^ #????????????????? | | ???????????????????# ^ ^^ #????????????????? | | ???????????????????# #????????????????? | | ???????????????????# #????????????????? | | ???????????????????##;; ####????????????????? | | ????????????????????#; %=^ ^^ #??????????????????? | | ????????????????????##*^^^^^ ##??????????????????? | | ?????????????????????#!^^=^^ #??????????????????? | | ?????????????????????##^^= ^ ##??????????????????? | | ????????????????????##[%^!^ #??????????????????? | | ????????????????????#%#*^! %##??????????????????? | | ????????????????????##=^^%^[ #??????????????????? | | ?????????????????????##^^^=%!"#??????????????????? | | ??????????????????????#^^^^ ^%#??????????????????? | | ??????????????????# ###"////""##?????????????????? | | ???????????????????# "%%% ! ##????????????????? | | ???????????????????####"!![!%*""##??????###??????? | | ??????????????????????##[%*%[% % ######## ######## | | ??????????????????###### %!==%% %"%""#" % | | ??????????????????# *%% %%%%% %+ | | ??????????????????# % ==!=# """ | | ??????????????????# [!= [%=# ""T"" | +----------------------------------------------------+ Best States ------------- Heat Dissipation 103 Coolant Potential 200 Energy Generation 45 Energy Capacity 590 Matter Stores 300 Matter Capacity 300 Sight Range 22 Robot Scan Range 16 Terrain Scan Density 10 Armor Coverage 2900 Resistance: KI 65 Resistance: TH 35 Resistance: EX 35 Resistance: EM 35 Resistance: I 35 Resistance: S 35 Resistance: P 35 Core Shielding 40 Utility Shielding 90 Evasion (%) 40 Targeting Accuracy 12 Core Analysis 6 Armor Integrity Analysis 30 Recoil Reduction 7 Particle Charging 30 Offensive Hacking 45 Defensive Hacking 10 Item Schematics ----------------- None Robot Schematics ------------------ None Fabricated ------------ H-55 Commando | x2 | -7/Factory | Preloaded Coolant Injector | x2 | -5/Factory H-66 Slayer | x2 | -4/Factory Alien Tech Used ----------------- Integrated Dissipator Transdimensional Reconstructor Core Reset Matrix Core Expander Integrated Mediator Phase Armor Dimensional Node Initializer High-powered Transdimensional Reconstructor Achievements -------------- Data Run Decrypted! Overkill Unlimited Data Challenges ------------ None Game ------ Seed CoolantCoreDeconstructor Manual? 0 Play Time 02:42:07 Cumulative 234.3 hours Start 2022.04.16 @ 21:00:23 End 2022.04.17 @ 12:40:41 Sessions 4 Manual Loads 0 Difficulty Explorer Special Mode None Game No. 187 Rogue 165 Adventurer 6 Explorer 16 Win Type 3 Total 29 Types 12/1/3/8/1/0/1/1/2 Lore% 72 Gallery% 82 Achievement% 71 Wizard Run 0 Options --------- ASCII 0 Keyboard 0 Movement Mouse Keybinds 0 Fullscreen 1 Font 18/SmallcapsGlow Map View 76x50 Tactical HUD 1 Map Filters NONE Filters NONE Steam 1 RUN: c0665d98-7530-4573-8eac-a71d4525db05